Cogmind - Beta 10.2 @@@ ROGUE MODE // 2020.12.26 @ 20:26:36 Player: Wakanaka Result: Destroyed by D-53 Grenadier with Mini Grenade Launcher Performance ------------- Evolutions (0) 0 Regions Visited (2) 400 Robots Destroyed (10) 50 Value Destroyed (79) 79 Prototype IDs (2) 40 Alien Tech Used (0) 0 Bonus (0) 0 TOTAL SCORE: 569 Bonus ------- None Cogmind --------- Core Integrity 0/250 Matter 405/500 Energy 70/125 System Corruption 2% Temperature Cool (29) Movement Core (450) Ox8 Location -10/Mines Parts ------- > --- POWER (1) -------- Light Ion Engine > --- PROPULSION (2) --- (None) > --- UTILITY (2) ------ Large Storage Unit High-capacity Matter Pod > --- WEAPON (2) ------- Particle Cannon > --- INVENTORY (10) --- Light Ion Engine Large Battery (300) ECM Suite Weapon Shielding Integration Mediator Particle Cannon Assault Rifle Datajack Peak State ------------ > --- POWER ------------ Light Ion Engine > --- PROPULSION ------- Wheel Wheel > --- UTILITY ---------- Large Storage Unit High-capacity Matter Pod > --- WEAPON ----------- Particle Cannon Light Assault Rifle > --- INVENTORY -------- Light Ion Engine Light Ion Engine ECM Suite Weapon Shielding Integration Mediator Particle Cannon Assault Rifle Assault Rifle [Rating: 9] Favorites ----------- Power Light Ion Engine Engine Light Ion Engine Propulsion Wheel Wheel Wheel Utility High-capacity Matter Pod Storage High-capacity Matter Pod Weapon Particle Cannon Energy Cannon Particle Cannon Ballistic Gun Light Assault Rifle Special Weapon Mining Laser Build | -11 -10 -10 ------- Run | Scr Mat Min Slots Evolved . | . . . Power . | . . . Propulsion . | . . . Utility . | . . . Weapon . | . . . Parts Attached 17 | 6 8 3 Power 3 | 1 1 1 Engine 3 | 1 1 1 Core . | . . . Reactor . | . . . Propulsion 5 | 2 3 . Treads . | . . . Leg . | . . . Wheel 5 | 2 3 . Hover . | . . . Flight . | . . . Utility 3 | 1 2 . Device . | . . . Storage 3 | 1 2 . Processor . | . . . Hackware . | . . . Protection . | . . . Artifact . | . . . Weapon 6 | 2 2 2 Energy Gun . | . . . Energy Cannon 3 | . 2 1 Ballistic Gun 2 | 2 . . Ballistic Cannon . | . . . Launcher . | . . . Special Weapon 1 | . . 1 Impact Weapon . | . . . Slashing Weapon . | . . . Piercing Weapon . | . . . Special Melee Weapon . | . . . Unidentified Prototypes . | . . . Parts Lost 4 | . 1 3 Power 1 | . . 1 Propulsion 2 | . 1 1 Utility . | . . . Weapon 1 | . . 1 Highest Loss Streak 3 | . 1 3 Average Slot Usage (%) 95 | . 97 80 Engine 13 | . 14 11 Wheel 24 | . 26 11 Storage 27 | . 27 28 Energy Cannon 13 | . 12 18 Ballistic Gun 13 | . 15 . Special Weapon 1 | . . 9 Naked Turns . | . . . Heaviest Build 31 | 10 31 31 Greatest Support 20 | 20 20 10 Greatest Overweight (x) 3 | 1 3 3 Average Overweight (x) . | . . 2 Largest Inventory Capacity 10 | 6 10 10 Average Capacity 8 | 5 8 10 Most Carried 9 | 3 8 9 Average Carried 5 | . 5 8 Final Capacity 10 | 6 10 10 Final Carried 8 | 3 8 8 Class Distribution -------------------- 100% | Mutant Dominant Class ---------------- Mutant | -10/Materials Mutant | -10/Mines Resources | -11 -10 -10 ----------- Run | Scr Mat Min Matter Collected 527 | 272 255 . Remotely . | . . . Salvage Created 344 | 89 255 . Parts 19 | 3 16 . Haulers Intercepted . | . . . Recyclers Shooed . | . . . Parts Field Recycled . | . . . Retrieved Matter . | . . . Parts Self-Destructed . | . . . Prevented . | . . . Kills | -11 -10 -10 ------- Run | Scr Mat Min Combat Hostiles Destroyed 6 | . 6 . Guns 3 | . 3 . Cannons 3 | . 3 . Classes Destroyed 3 | 1 2 . Worker 1 | . 1 . Recycler 3 | 1 2 . Swarmer 6 | . 6 . Best Kill Streak 5 | 1 5 . Combat Bots Only 3 | . 3 . Max Kills in Single Turn 2 | 1 2 . Gunslinging 1 | . 1 . Exploded . | . . . Melee . | . . . Uniques/NPCs Destroyed . | . . . Combat | -11 -10 -10 -------- Run | Scr Mat Min Damage Taken 714 | . 300 414 Core 253 | . 69 184 Absorbed by Shields . | . . . Core Remaining (%) 100 | 100 . . Volleys Fired 25 | 3 19 3 Largest 2 | 2 2 1 Hottest 136 | 40 136 68 Shots Fired 47 | 6 38 3 Gun 36 | 6 30 . Cannon 11 | . 8 3 Launcher . | . . . Special . | . . . Kinetic 36 | 6 30 . Thermal 11 | . 8 3 Explosive . | . . . Electromagnetic . | . . . Robot Hit Streak 12 | 5 12 1 Robot Miss Streak 2 | 1 2 2 Penetration Max . | . . . Secondary Targets 2 | . 2 . Max Gunslinging Chain 1 | . 1 . Shots Hit Robots 31 | 5 25 1 Core Hits 14 | 2 11 1 Critical Hits . | . . . Critical Kills . | . . . Critical Parts Destroyed . | . . . Melee Attacks . | . . . Impact . | . . . Slashing . | . . . Piercing . | . . . Sneak Attacks . | . . . Combat Hostiles . | . . . Follow-up Attacks . | . . . Damage Inflicted 367 | 57 269 41 Guns 242 | 57 185 . Cannons 125 | . 84 41 Explosions . | . . . Melee . | . . . Ramming . | . . . Kinetic 242 | 57 185 . Thermal 125 | . 84 41 Explosive . | . . . Electromagnetic . | . . . Impact . | . . . Slashing . | . . . Piercing . | . . . Highest Corruption 2 | . 2 2 Average Corruption 2 | . 2 2 Corruption Purged . | . . . Overload Shots . | . . . Overflow Damage 1 | . 1 . Projectiles 1 | . 1 . Explosions . | . . . Melee . | . . . Knockbacks . | . . . Impact . | . . . Kinetic . | . . . Secondary . | . . . Self-Inflicted Damage . | . . . Shots . | . . . Rammed . | . . . Targets Rammed . | . . . Kicked . | . . . Crushed . | . . . Highest Temperature 225 | . 225 49 Average Temperature 81 | . 97 30 Received Heat Transfer . | . . . Siege Activations . | . . . Robots Corrupted . | . . . Combat Hostiles . | . . . Parts Fried . | . . . Impact Corruptions . | . . . Robots Melted . | . . . Combat Hostiles . | . . . Parts Melted . | . . . Heat Transferred 222 | . 148 74 Parts Sabotaged . | . . . Parts Stolen . | . . . Parts Stripped . | . . . Power Chain Reactions . | . . . Missiles Intercepted . | . . . Alert | -11 -10 -10 ------- Run | Scr Mat Min Peak Influence 145 | 5 145 56 Initial 56 | . 3 56 Average 74 | 1 87 50 Maximum Alert Level . | . . . Low Security (%) 100 | 100 100 100 Level 1 . | . . . Level 2 . | . . . Level 3 . | . . . Level 4 . | . . . Level 5 . | . . . High Security . | . . . Max Security . | . . . Squads Dispatched 3 | . 3 . Investigation 1 | . 1 . Extermination . | . . . Reinforcement 2 | . 2 . Assault . | . . . Garrison . | . . . Intercept . | . . . Construction Impeded . | . . . Haulers Reinforced . | . . . Stealth | -11 -10 -10 --------- Run | Scr Mat Min Distress Signals 1 | . 1 . Communications Jammed . | . . . Distress Signals . | . . . Times Spotted 17 | . 15 2 Peak Tracking Total 3 | . 3 2 Tactical Retreats 2 | . 2 . Traps | -11 -10 -10 ------- Run | Scr Mat Min Traps Triggered 1 | . 1 . Indirectly . | . . . Trap Hack Attempts . | . . . Triggered . | . . . Disarmed . | . . . Reprogrammed . | . . . Reused . | . . . Traps Extracted . | . . . Installed . | . . . Triggered . | . . . Machines | -11 -10 -10 ---------- Run | Scr Mat Min Machines Disabled . | . . . Max in Single Turn . | . . . Machines Sabotaged . | . . . Garrisons Compromised . | . . . Overloaded Fab Kills . | . . . Fab Network Shutdowns . | . . . Hacking | -11 -10 -10 --------- Run | Scr Mat Min Machines Accessed 3 | . 3 . Terminals 2 | . 2 . Fabricators . | . . . Repair Stations . | . . . Recycling Units 1 | . 1 . Scanalyzers . | . . . Garrison Access . | . . . Total Hacks 9 | . 9 . Successful 6 | . 6 . Failed 3 | . 3 . Catastrophic . | . . . Database Lockouts . | . . . Manual . | . . . Terminals 7 | . 7 . Fabricators . | . . . Repair Stations . | . . . Recycling Units 2 | . 2 . Scanalyzers . | . . . Garrison Access . | . . . Terminal Hacks 4 | . 4 . Prototype ID Bank 1 | . 1 . Emergency Access Points 1 | . 1 . Locate Traps 1 | . 1 . Hauler Manifests 1 | . 1 . Fabricator Hacks . | . . . Repair Station Hacks . | . . . Recycling Unit Hacks 2 | . 2 . Report Inventory 1 | . 1 . Retrieve Components 1 | . 1 . Scanalyzer . | . . . Garrison Access Hacks . | . . . Unauthorized Hacks . | . . . Terminals . | . . . Fabricators . | . . . Repair Stations . | . . . Recycling Units . | . . . Scanalyzers . | . . . Garrison Access . | . . . Data Cores Recovered . | . . . Used . | . . . Hacking Detections 3 | . 3 . Full Trace Events 1 | . 1 . Feedback Events . | . . . Feedback Blocked . | . . . Robot Schematics Acquired . | . . . Robots Built . | . . . Matter . | . . . Time . | . . . Total Robot Build Rating . | . . . Part Schematics Acquired . | . . . Parts Built . | . . . Matter . | . . . Time . | . . . Total Part Build Rating . | . . . Parts Repaired . | . . . Time . | . . . Parts Recycled . | . . . Recycled Matter . | . . . Retrieved Matter . | . . . Retrieved Components 2 | . 2 . Parts Scanalyzed . | . . . Part Schematics Acquired . | . . . Parts Damaged . | . . . Bothacking | -11 -10 -10 ------------ Run | Scr Mat Min Used RIF Installer . | . . . Robots Hacked . | . . . Non-combat . | . . . Combat . | . . . Robot Hacks Applied . | . . . Relay Couplers Released . | . . . Robots Rewired . | . . . Allies Hacked . | . . . Hacks Repelled . | . . . Allies | -11 -10 -10 -------- Run | Scr Mat Min Total Allies 1 | . . 1 Largest Group 1 | . . 1 Highest-Rated Group 31 | . . 31 Highest-Rated Ally 31 | . . 31 Total Orders . | . . . Ally Attacks 1 | . . 1 Total Damage 22 | . . 22 Kills . | . . . Allies Corrupted . | . . . Allies Melted . | . . . Intel | -11 -10 -10 ------- Run | Scr Mat Min Robot Analysis Total . | . . . Derelict Logs Recovered . | . . . Drone Launches . | . . . Drone Recoveries . | . . . Exploration | -11 -10 -10 ------------- Run | Scr Mat Min Turns Passed 593 | 61 474 58 Spaces Moved 543 | 52 446 45 Core 4 | 4 . . Treads . | . . . Legs . | . . . Wheels 539 | 48 446 45 Hover . | . . . Flight . | . . . Fastest Speed 50 | 50 80 100 Average Speed 88 | 79 88 104 Slowest Speed 110 | 100 110 110 Overloaded Moves . | . . . Propulsion Burnouts . | . . . Robots Hopped . | . . . Cave-ins Triggered . | . . . Exploration Rate (%) 21 | 5 51 9 Regions Visited 2 Branch Regions 1 Pre-discovered Areas . | . . . Known Exits Taken . | . . . Unknown Exits Taken 2 | 1 1 . Scrap Searched . | . . . Spaces Dug . | . . . Terrain Destroyed . | . . . Melee . | . . . Projectile . | . . . AOE . | . . . Terrain Rammed . | . . . Walls Destroyed . | . . . Machines Disabled . | . . . Actions | -11 -10 -10 --------- Run | Scr Mat Min Total 606 | 63 491 52 Wait 4 | . 4 . Move 541 | 51 445 45 Hop . | . . . Pick Up 14 | 3 10 1 Fast Attach 7 | 6 1 . Attach 1 | . . 1 Detach . | . . . Swap 9 | . 7 2 Drop 5 | . 5 . Fire 25 | 3 19 3 Melee . | . . . Ram . | . . . Kick . | . . . Crush . | . . . Escape Stasis . | . . . Rewire . | . . . Trap . | . . . Miscellaneous . | . . . Route ------- -11/Scrapyard -10/Materials (discovered 2 exits: [*Min x2]) -10/Mines (discovered 1 exit: [*Exi]) History --------- Turn | Location | Event 10 | -11/Scrapyard | Discovered new exit (range 16) 62 | -11/Scrapyard | Entered Materials 292 | -10/Materials | Discovered new exit (range 10) 312 | -10/Materials | Build established: Mutant 525 | -10/Materials | Discovered new exit (range 11) 536 | -10/Materials | Entered Mines 537 | -10/Mines | Assembled infested the area 549 | -10/Mines | Received a Mining Laser from a helpful Derelict 572 | -10/Mines | Deemed a non-threat by the Exiles lab entrance 573 | -10/Mines | Discovered new exit (range 5) 589 | -10/Mines | Core integrity fell below 50% 594 | -10/Mines | Destroyed by D-53 Grenadier with Mini Grenade Launcher Last Messages --------------- Something is scanning the area. 00537_ ALERT: Infestation in the mines, dispatching Demolisher response squad. 00547_ A derelict emerges from the shadows: "What are you doing alone down here?" 00549_ NM-DM4(g): "And why aren't you carrying a mining laser?! Certainly you don't want THEM to uncover you when the ceiling comes crashing down? Here, take my spare." 00552_ NM-DM4(g): "You're apparently new around these parts, I'll cover you." 00556_ NM-DM4(g): "Mining lasers are a lot more useful than you might think..." 00556_ Acquired Mining Laser. 00572_ "No threat detected, you may enter." 00573_ EXIT=FOUND 00585_ Wheel destroyed. 00587_ NM-DM4(g) destroyed. 00587_ Lgt. Ion Engine destroyed. 00593_ The unstable cave ceiling collapses. 00594_ Mining Laser destroyed. Map ----- +----------------------------------------------------+ | ??????????????????????????????????? | | ??????????????????????????????????? | | ??????????????????????????????????? | | ??????????????????????????????????? | | ??????????????????????????????????? | | ??????????????????????????????????? | | ??????????????????????????????????? | | ??????????????????????????????????? | | ??????????????????????????????????? | | ??????????????????????????????????? | | ??????????????????????????????????? | | ??????????????????????????????????? | | ??????????????????????????????????? | | ??????????????????????????????????? | | ?????????????????????????????????## | | ????????????????????????????????## | | ???????????????????????????????## | | ??????????????????????????????## | | ?????????????????????????????## | | ????????#########??####????### | | ???????## #### ##??## | | ??????## # #### | | ?????## ## | | ?????#< ## | | ?????# ### #### | | ?????# @ d ##########?####??? | | ?????# d##????????????????? | | ?????# #?????????????????? | | ?????## #?????????????????? | | ??????## # $????????????????? | | ???????####### ??????????????? | | ?????????????########?????????????? | | ??????????????????????????????????? | | ??????????????????????????????????? | | ??????????????????????????????????? | | ??????????????????????????????????? | | ??????????????????????????????????? | | ??????????????????????????????????? | | ??????????????????????????????????? | | ??????????????????????????????????? | | ??????????????????????????????????? | | ??????????????????????????????????? | | ??????????????????????????????????? | | ??????????????????????????????????? | | ??????????????????????????????????? | | ??????????????????????????????????? | | ??????????????????????????????????? | | | | | | | +----------------------------------------------------+ Best States ------------- Heat Dissipation 25 Energy Generation 10 Energy Capacity 125 Matter Stores 427 Matter Capacity 500 Sight Range 16 Terrain Scan Density 10 Evasion (%) 44 Item Schematics ----------------- None Robot Schematics ------------------ None Fabricated ------------ Nothing Alien Tech Used ----------------- None Achievements -------------- None Challenges ------------ None Game ------ Seed RagnarokSurgeRigger Manual? 0 Play Time 00:16:28 Cumulative 4.7 hours Start 2020.12.26 @ 20:11:19 End 2020.12.26 @ 20:26:36 Sessions 1 Manual Loads 0 Difficulty Rogue Special Mode None Game No. 4 Rogue 4 Adventurer 0 Explorer 0 Win Type - Total 0 Types 0/0/0/0/0/0/0/0/0 Lore% 1 Gallery% 9 Achievement% 6 Wizard Run 0 Options --------- ASCII 0 Keyboard 0 Movement Arrows Keybinds 0 Fullscreen 1 Font 18/Terminus Map View 76x50 Tactical HUD 1 Map Filters NONE Filters NONE Steam 1 RUN: 62af6d85-2961-42dd-bab2-dc2669e3f285